fUSD/lending_fUSD_20251224
["ID","MTS","AMOUNT","RATE_DAILY","PERIOD"]
[399674326,1766604643616,-39.30059229,0.00017,2]
[399674328,1766604643627,-6117.96875002,0.00017,2]
[399674330,1766604643639,-631.06124998,0.00017,2]
[399674332,1766604643651,-3597802.05298594,0.00017,2]
[399674334,1766604643661,-160.0,0.00017,2]
[399674337,1766604643671,-159179.3294479,0.00017,2]
[399674339,1766604643680,-247656.54214183,0.00017,2]
[399674341,1766604643691,-1000.0,0.00017,2]
[399674343,1766604643700,-150.0,0.00017,2]
[399674345,1766604643710,-2903.80863836,0.00017,2]
[399674347,1766604643723,-150.0,0.00017,2]
[399674349,1766604643732,-671.20407632,0.00017,2]
[399674351,1766604643741,-150.0,0.00017,2]
[399674353,1766604643751,-18870.63954084,0.00017,2]
[399674355,1766604643762,-151.0,0.00017,2]
[399674357,1766604643772,-153.2941,0.00017,2]
[399674359,1766604643782,-260.755928,0.00017,2]
[399674361,1766604643791,-2000.0,0.00017,2]
[399674363,1766604643801,-250.0,0.00017,2]
[399674364,1766604643811,-213.992262,0.00017,2]
[399674365,1766604643820,-151.0,0.00017,2]
[399674366,1766604643829,-776698.34116994,0.00017,2]
[399674367,1766604643857,-714.518519,0.00017,2]
[399674368,1766604643870,-1585.55295764,0.00017,2]
[399674388,1766604644361,-39.01024494,0.00017,2]
[399674389,1766604644420,-45319.90427438,0.00017,2]
[399674420,1766604645757,-823.31808289,0.00015195,2]
[399674421,1766604645768,-151.0,0.00015438,2]
[399674422,1766604645778,-3824.22186169,0.00017,2]
[399674423,1766604645816,-48291.55773212,0.00017,2]
[399674424,1766604646036,-505.01796416,0.00017,2]
[399674425,1766604646048,-32131.87910236,0.00017,2]
[399674426,1766604646092,-7376.00327993,0.00017,2]
[399674434,1766604983985,225.33,0.00010643,2]
[399674435,1766604984369,225.33,0.00011707,2]
[399674436,1766604984909,225.33,0.00012772,2]
[399674437,1766605015236,1257.04,0.00021918,30]
[399674438,1766605024131,-165.10888867,0.00013716,2]
[399674439,1766605024153,-300.0,0.00013766,2]
[399674440,1766605024175,-195.0,0.00013766,2]
[399674441,1766605024201,-250.0,0.00013766,2]
[399674442,1766605024223,-182.42775109,0.00013816,2]
[399674443,1766605024245,-85.92206408,0.0001382,2]
[399674444,1766605027622,1600.0,0.00013421,2]
[399674445,1766605028507,-195.0,0.00013741,2]
[399674446,1766605028532,-195.0,0.00013791,2]
[399674447,1766605028556,-109.07793592,0.0001382,2]
[399674448,1766605028579,-0.92206408,0.0001382,2]
[399674449,1766605039633,-182.75482161,0.0001382,2]
[399674450,1766605041653,-66.32311431,0.0001382,2]
[399674451,1766605041675,-112.33804034,0.00013836,2]
[399674452,1766605076804,-195.08800762,0.00013739,2]
[399674453,1766605078833,-185.98743255,0.00013739,2]
[399674454,1766605084104,1034.77788098,0.00013916,5]
[399674455,1766605100238,-46.1717644,0.00013739,2]
[399674456,1766605100263,-205.26571113,0.00013745,2]
[399674457,1766605102395,-94.73428887,0.00013745,2]
[399674458,1766605102429,-195.0,0.00013752,2]
[399674459,1766605102462,-35.79404041,0.00013764,2]
[399674460,1766605105553,-195.09702124,0.00013764,2]
[399674461,1766605109687,166.66,0.00012794,2]
[399674462,1766605109884,166.66,0.00013064,2]
[399674463,1766605110072,166.66,0.00013333,2]
[399674464,1766605110322,166.66,0.00013602,2]
[399674465,1766605174069,-289.60137542,0.00013764,2]
[399674466,1766605175529,-79.50756293,0.00013764,2]
[399674467,1766605175553,-139.5852882,0.00013773,2]
[399674468,1766605213031,209.0,9.989e-05,2]
[399674469,1766605213281,209.0,9.989e-05,2]
[399674470,1766605213569,209.0,9.989e-05,2]
[399674471,1766605355979,-253.25722882,0.00013773,2]
[399674472,1766605356978,-9.74277118,0.00013773,2]
[399674473,1766605357001,-160.4147118,0.00013773,2]
[399674474,1766605357025,-98.84251702,0.00013816,2]
[399674475,1766605361077,6430.38,0.00013352,2]
[399674476,1766605361100,2451.13,0.00013352,2]
[399674477,1766605399040,-183.42794163,0.00013717,2]
[399674478,1766605401575,-101.40352809,0.00013717,2]
[399674479,1766605401597,-67.83941931,0.00013778,2]
[399674480,1766605402639,-216.9920504,0.00013778,2]
[399674481,1766605402664,-47.95372682,0.00013816,2]
[399674482,1766605404692,-102.04627318,0.00013816,2]
[399674483,1766605404714,-209.52578519,0.00013816,2]
[399674484,1766605427865,5309.15,0.00013529,2]
[399674485,1766605474612,-90.47421481,0.00013816,2]
[399674486,1766605474636,-221.02743915,0.00013816,2]
[399674487,1766605489993,191.66,0.00013273,2]
[399674488,1766605504662,1937.36353839,0.00013232,2]
[399674489,1766605505047,717.33646161,0.00013232,2]
[399674490,1766605545302,4139.22793126,0.00013304,2]
[399674491,1766605545326,4856.56439287,0.00013304,2]
[399674492,1766605545349,1456.28767587,0.00013304,2]
[399674493,1766605751038,2409.1,0.00013058,2]
[399674494,1766605799002,-284.83146971,0.00013716,2]
[399674495,1766605799036,-1200.0,0.00013815,2]
[399674496,1766605799068,-300.0,0.00013816,2]
[399674497,1766605799101,-1200.0,0.00013816,2]
[399674498,1766605799132,-300.0,0.00013816,2]
[399674499,1766605799162,-150.0,0.00013816,2]
[399674500,1766605799191,-300.0,0.00013816,2]
[399674501,1766605799221,-300.0,0.00013816,2]
[399674502,1766605799252,-195.0,0.00013816,2]
[399674503,1766605801924,-300.0,0.00013815,2]
[399674504,1766605801955,-300.0,0.00013815,2]
[399674505,1766605801986,-1200.0,0.00013815,2]
[399674506,1766605802016,-2500.0,0.00013817,2]
[399674507,1766605802049,-112.99195966,0.00013836,2]
[399674508,1766605812849,250.42,0.00013548,2]
[399674509,1766605819229,-384.26459056,0.00013717,2]
[399674510,1766605822880,-432.54429703,0.00013717,2]
[399674511,1766605824623,-225.69646884,0.00013717,2]
[399674512,1766605826915,-174.23,0.00013717,2]
[399674513,1766605829008,-390.88751809,0.00013717,2]
[399674546,1766605832238,-175620.20874707,0.00013717,2]
[399674548,1766605832253,-42530.51617369,0.00013717,2]
[399674550,1766605832265,-81526.60722038,0.00013717,2]
[399674552,1766605832278,-1254.41808677,0.00013717,2]
[399674555,1766605832297,-570.88444884,0.00013717,2]
[399674557,1766605832309,-9515.84849553,0.00013717,2]
[399674560,1766605832320,-888.52207154,0.00013717,2]
[399674570,1766605832697,-500.0,0.00013716,2]
[399674572,1766605832721,-131.72318274,0.00013716,2]
[399674765,1766605834653,-325.55152932,0.00013716,2]
[399674914,1766605836785,-121.73838303,0.00013716,2]
[399674915,1766605836813,-103.38485608,0.00013716,2]
[399674916,1766605837922,-360.64953553,0.00013716,2]
[399674917,1766605837931,-19914.28645894,0.00013717,2]
[399674918,1766605838028,-666571.08542272,0.00013717,2]
[399674919,1766605838039,-600.0,0.00013741,2]
[399674920,1766605838052,-250.0,0.00013766,2]
[399674921,1766605838062,-600.0,0.00013802,2]
[399674922,1766605838072,-158.83021572,0.00013802,2]
[399674923,1766605838083,-264.0,0.00013815,2]
[399674924,1766605838094,-350.2804,0.00013816,2]
[399674925,1766605838104,-14442.1324,0.00013816,2]
[399674926,1766605838116,-2500.0,0.00013817,2]
[399674927,1766605838126,-13809.52072874,0.00013839,2]
[399674928,1766605838136,-466.61650943,0.00013839,2]
[399674929,1766605838146,-217.4757184,0.00013839,2]
[399674930,1766605838155,-449.13863388,0.00013839,2]
[399674931,1766605838166,-5002.53691381,0.00013839,2]
[399674932,1766605838176,-166.66,0.00013872,2]
[399674933,1766605838186,-14831.79,0.00013872,2]
[399674935,1766605838198,-607.99,0.00013908,2]
[399674936,1766605838208,-999.99,0.00013909,2]
[399674937,1766605838218,-500.0,0.00013909,2]
[399674938,1766605838228,-151.0,0.00013909,2]
[399674939,1766605838239,-200.0,0.00013909,2]
[399674940,1766605838249,-151.0,0.00013909,2]
[399674941,1766605838260,-153.43746121,0.00013909,2]
[399674942,1766605838271,-500.0,0.00013909,2]
[399674943,1766605838284,-500.0,0.00013909,2]
[399674944,1766605838295,-500.0,0.00013909,2]
[399674946,1766605838307,-500.0,0.00013909,2]
[399674947,1766605838317,-500.0,0.00013909,2]
[399674949,1766605838328,-500.0,0.00013909,2]
[399674951,1766605838337,-500.0,0.00013909,2]
[399674953,1766605838347,-500.0,0.00013909,2]
[399674955,1766605838358,-500.0,0.00013909,2]
[399674957,1766605838368,-500.0,0.00013909,2]
[399674959,1766605838378,-500.0,0.00013909,2]
[399674961,1766605838388,-151.0,0.00013909,2]
[399674964,1766605838398,-151.0,0.00013909,2]
[399674966,1766605838408,-151.0,0.00013909,2]
[399674968,1766605838418,-151.0,0.00013909,2]
[399674970,1766605838428,-151.0,0.00013909,2]
[399674971,1766605838438,-151.0,0.00013909,2]
[399674973,1766605838448,-151.0,0.00013909,2]
[399674975,1766605838458,-151.0,0.00013909,2]
[399674977,1766605838467,-151.0,0.00013909,2]
[399674979,1766605838477,-151.0,0.00013909,2]
[399674981,1766605838487,-151.0,0.00013909,2]
[399674983,1766605838497,-200.0,0.00013909,2]
[399674985,1766605838508,-207.4,0.00013909,2]
[399674987,1766605838517,-411.0479132,0.00013914,2]
[399674989,1766605838528,-151.0,0.00013914,2]
[399674991,1766605838539,-3982.97,0.00013916,2]
[399674993,1766605838549,-9999.99,0.00013916,2]
[399674995,1766605838560,-150.99,0.00013916,2]
[399674997,1766605838570,-9999.99,0.00013916,2]
[399675000,1766605838588,-46071.42,0.00013916,2]
[399675002,1766605838599,-150.99,0.00013916,2]
[399675004,1766605838609,-9999.99,0.00013916,2]
[399675005,1766605838620,-500.0,0.00013916,2]
[399675007,1766605838630,-500.0,0.00013916,2]
[399675009,1766605838639,-500.0,0.00013916,2]
[399675011,1766605838650,-500.0,0.00013916,2]
[399675013,1766605838660,-500.0,0.00013916,2]
[399675016,1766605838671,-500.0,0.00013916,2]
[399675018,1766605838682,-150.0,0.00013916,2]
[399675020,1766605838692,-500.0,0.00013916,2]
[399675022,1766605838701,-500.0,0.00013916,2]
[399675024,1766605838713,-500.0,0.00013916,2]
[399675026,1766605838722,-500.0,0.00013916,2]
[399675028,1766605838732,-500.0,0.00013916,2]
[399675030,1766605838741,-500.0,0.00013916,2]
[399675032,1766605838754,-500.0,0.00013916,2]
[399675034,1766605838765,-500.0,0.00013916,2]
[399675036,1766605838775,-500.0,0.00013916,2]
[399675037,1766605838787,-500.0,0.00013916,2]
[399675039,1766605838797,-500.0,0.00013916,2]
[399675042,1766605838807,-500.0,0.00013916,2]
[399675044,1766605838818,-582.27761239,0.00013916,2]
[399675045,1766605838828,-500.0,0.00013916,2]
[399675048,1766605838839,-287.11465544,0.00013916,2]
[399675050,1766605838849,-500.0,0.00013916,2]
[399675052,1766605838859,-500.0,0.00013916,2]
[399675054,1766605838869,-500.0,0.00013916,2]
[399675055,1766605838879,-500.0,0.00013916,2]
[399675057,1766605838889,-500.0,0.00013916,2]
[399675059,1766605838899,-500.0,0.00013916,2]
[399675061,1766605838908,-500.0,0.00013917,2]
[399675064,1766605838919,-500.0,0.00013939,2]
[399675066,1766605838929,-500.0,0.00013939,2]
[399675067,1766605838939,-500.0,0.00013939,2]
[399675070,1766605838949,-500.0,0.00013939,2]
[399675071,1766605838958,-500.0,0.00013939,2]
[399675074,1766605838968,-500.0,0.00013939,2]
[399675076,1766605838978,-500.0,0.00013939,2]
[399675078,1766605838989,-582.59898014,0.00013939,2]
[399675080,1766605838998,-485.01035695,0.00013939,2]
[399675081,1766605839009,-500.0,0.00013939,2]
[399675084,1766605839018,-500.0,0.00013939,2]
[399675086,1766605839029,-500.0,0.00013939,2]
[399675088,1766605839040,-500.0,0.00013939,2]
[399675090,1766605839051,-500.0,0.00013939,2]
[399675092,1766605839062,-500.0,0.00013939,2]
[399675094,1766605839072,-500.0,0.00013939,2]
[399675096,1766605839082,-500.0,0.00013939,2]
[399675098,1766605839091,-500.0,0.00013939,2]
[399675100,1766605839101,-500.0,0.00013939,2]
[399675102,1766605839110,-500.0,0.00013939,2]
[399675104,1766605839120,-500.0,0.00013939,2]
[399675105,1766605839132,-500.0,0.00013939,2]
[399675107,1766605839142,-500.0,0.00013939,2]
[399675110,1766605839151,-502.53521633,0.00013939,2]
[399675112,1766605839161,-500.0,0.00013939,2]
[399675113,1766605839170,-500.0,0.00013939,2]
[399675116,1766605839180,-500.0,0.00013939,2]
[399675118,1766605839189,-500.0,0.00013939,2]
[399675120,1766605839199,-166.66,0.00013954,2]
[399675122,1766605839208,-191.66,0.0001401,2]
[399675124,1766605839217,-1000.0,0.0001404,2]
[399675126,1766605839227,-24004.5799,0.0001404,2]
[399675128,1766605839237,-166.66,0.00014141,2]
[399675130,1766605839246,-348.0,0.00014144,2]
[399675132,1766605839256,-150.0,0.00014152,2]
[399675134,1766605839265,-215.0,0.00014153,2]
[399675136,1766605839274,-194.0,0.00014172,2]
[399675138,1766605839284,-500.0,0.00014178,2]
[399675140,1766605839294,-13809.52072866,0.00014179,2]
[399675142,1766605839303,-5002.53691373,0.00014179,2]
[399675144,1766605839312,-408.35828294,0.00014181,2]
[399675146,1766605839321,-607.99,0.00014182,2]
[399675148,1766605839330,-419.0,0.00014191,2]
[399675150,1766605839339,-299.0,0.00014201,2]
[399675152,1766605839348,-5393.24,0.00014212,2]
[399675154,1766605839357,-1446.0,0.0001422,2]
[399675156,1766605839366,-468.0,0.00014229,2]
[399675158,1766605839376,-208.99241195,0.00014235,2]
[399675160,1766605839386,-1908.0,0.00014248,2]
[399675162,1766605839395,-498.0,0.00014254,2]
[399675164,1766605839404,-922.0,0.00014276,2]
[399675166,1766605839414,-308.0,0.00014283,2]
[399675168,1766605839423,-1811.0,0.00014305,2]
[399675170,1766605839432,-922.0,0.00014333,2]
[399675172,1766605839442,-276.0,0.00014359,2]
[399675174,1766605839451,-1959.0,0.00014361,2]
[399675176,1766605839460,-1482.0,0.00014387,2]
[399675178,1766605839469,-1903.0,0.0001439,2]
[399675180,1766605839478,-578.0,0.00014416,2]
[399675182,1766605839488,-527.0,0.00014418,2]
[399675184,1766605839496,-384.0,0.00014445,2]
[399675186,1766605839505,-607.99,0.00014456,2]
[399675188,1766605839514,-765.0,0.00014473,2]
[399675190,1766605839524,-466.61650939,0.00014496,2]
[399675192,1766605839537,-1299.0,0.00014502,2]
[399675194,1766605839547,-13809.52072866,0.00014519,2]
[399675195,1766605839561,-5002.53691373,0.00014519,2]
[399675198,1766605839575,-166.66,0.0001453,2]
[399675200,1766605839585,-1625.0,0.00014531,2]
[399675202,1766605839595,-208.34,0.00014643,2]
[399675204,1766605839604,-208.69,0.00014675,2]
[399675206,1766605839613,-500.0,0.00014675,2]
[399675207,1766605839623,-322.6107,0.00014714,2]
[399675209,1766605839632,-250.0,0.00014714,2]
[399675211,1766605839641,-543.0,0.00014714,2]
[399675213,1766605839650,-267.16027015,0.00014714,2]
[399675215,1766605839660,-596.27065898,0.00014714,2]
[399675217,1766605839669,-578.20924308,0.00014714,2]
[399675219,1766605839678,-500.0,0.00014714,2]
[399675221,1766605839687,-500.0,0.00014714,2]
[399675223,1766605839697,-200.0,0.00014714,2]
[399675225,1766605839706,-500.0,0.00014714,2]
[399675227,1766605839715,-207.4,0.00014714,2]
[399675229,1766605839724,-500.0,0.00014714,2]
[399675231,1766605839733,-215.0738,0.00014714,2]
[399675233,1766605839742,-500.0,0.00014714,2]
[399675235,1766605839752,-223.0315306,0.00014714,2]
[399675237,1766605839761,-500.0,0.00014714,2]
[399675239,1766605839770,-231.28369723,0.00014714,2]
[399675241,1766605839783,-500.0,0.00014714,2]
[399675243,1766605839792,-239.84119403,0.00014714,2]
[399675245,1766605839801,-500.0,0.00014714,2]
[399675247,1766605839810,-248.71531821,0.00014714,2]
[399675250,1766605839820,-500.0,0.00014714,2]
[399675253,1766605839829,-257.91778498,0.00014714,2]
[399675294,1766605839838,-500.0,0.00014714,2]
[399675296,1766605840143,-267.46074303,0.00014714,2]
[399675298,1766605840152,-500.0,0.00014714,2]
[399675300,1766605840162,-277.35679052,0.00014714,2]
[399675302,1766605840171,-500.0,0.00014714,2]
[399675303,1766605840180,-500.0,0.00014714,2]
[399675304,1766605840189,-500.0,0.00014714,2]
[399675305,1766605840198,-500.0,0.00014714,2]
[399675306,1766605840207,-500.0,0.00014714,2]
[399675307,1766605840217,-500.0,0.00014714,2]
[399675308,1766605840226,-500.0,0.00014714,2]
[399675309,1766605840235,-500.0,0.00014714,2]
[399675310,1766605840244,-500.0,0.00014714,2]
[399675312,1766605840253,-500.0,0.00014714,2]
[399675314,1766605840263,-500.0,0.00014714,2]
[399675316,1766605840271,-607.99,0.0001473,2]
[399675318,1766605840280,-191.66,0.00014747,2]
[399675320,1766605840289,-13809.52072866,0.00014859,2]
[399675322,1766605840299,-5002.53691373,0.00014859,2]
[399675324,1766605840309,-211.5,0.00014899,2]
[399675326,1766605840318,-225.33,0.000149,2]
[399675328,1766605840327,-255.0,0.00014935,2]
[399675330,1766605840336,-449.13863386,0.00014981,2]
[399675332,1766605840346,-323.08,0.00015002,2]
[399675334,1766605840355,-607.99,0.00015004,2]
[399675337,1766605840364,-151.0,0.00015032,2]
[399675339,1766605840373,-151.0,0.00015033,2]
[399675341,1766605840382,-151.0,0.0001504,2]
[399675343,1766605840391,-154.62,0.00015042,2]
[399675345,1766605840400,-365.88,0.00015077,2]
[399675347,1766605840409,-300.0,0.00015088,2]
[399675349,1766605840420,-250.0,0.00015089,2]
[399675351,1766605840429,-600.0,0.00015089,2]
[399675353,1766605840438,-1600.0,0.00015099,2]
[399675355,1766605840447,-166.66,0.00015106,2]
[399675357,1766605840456,-500.0,0.00015124,2]
[399675359,1766605840465,-434.0,0.00015138,2]
[399675361,1766605840474,-420.0,0.00015138,2]
[399675363,1766605840482,-420.0,0.00015138,2]
[399675365,1766605840491,-466.61650939,0.00015152,2]
[399675367,1766605840501,-1680.0,0.00015196,2]
[399675369,1766605840509,-250.0,0.00015197,2]
[399675371,1766605840518,-195.0,0.00015197,2]
[399675373,1766605840527,-195.0,0.00015198,2]
[399675375,1766605840537,-600.0,0.00015198,2]
[399675377,1766605840546,-195.0,0.00015198,2]
[399675379,1766605840556,-13809.52072866,0.00015199,2]
[399675381,1766605840565,-5002.53691373,0.00015199,2]
[399675383,1766605840576,-608.03066189,0.00015278,2]
[399675385,1766605840584,-2160.07046784,0.00015283,2]
[399675387,1766605840593,-150.0,0.00015288,2]
[399675389,1766605840602,-150.0,0.00015288,2]
[399675391,1766605840618,-150.0,0.00015288,2]
[399675393,1766605840627,-150.0,0.00015288,2]
[399675395,1766605840639,-26780.0,0.00015407,2]
[399675397,1766605840659,-191.66,0.00015485,2]
[399675399,1766605840671,-13809.52072866,0.0001554,2]
[399675401,1766605840680,-5002.53691373,0.0001554,2]
[399675402,1766605840689,-166.66,0.00015682,2]
[399675403,1766605840699,-466.61650939,0.00015809,2]
[399675404,1766605840709,-13809.52072866,0.0001588,2]
[399675405,1766605840718,-5002.53691373,0.0001588,2]
[399675406,1766605840727,-225.33,0.00015964,2]
[399675407,1766605840736,-506.44561835,0.00015999,2]
[399675408,1766605840745,-334.5472959,0.00016083,2]
[399675409,1766605840754,-543.0,0.00016083,2]
[399675410,1766605840764,-287.61899177,0.00016083,2]
[399675411,1766605840773,-449.13863386,0.00016122,2]
[399675412,1766605840782,-433.0,0.00016151,2]
[399675413,1766605840792,-13809.52072866,0.0001622,2]
[399675414,1766605840800,-5002.53691373,0.0001622,2]
[399675415,1766605840810,-191.66,0.00016222,2]
[399675416,1766605840819,-166.66,0.00016257,2]
[399675417,1766605840828,-12348.0,0.00016464,2]
[399675418,1766605840837,-466.61650939,0.00016466,2]
[399675419,1766605840846,-3110.229,0.00016486,2]
[399675420,1766605840854,-336.842,0.00016486,2]
[399675421,1766605840864,-13809.52072866,0.0001656,2]
[399675422,1766605840873,-5002.53691373,0.0001656,2]
[399675423,1766605840882,-587.0,0.00016588,2]
[399675424,1766605840891,-373.0,0.00016588,2]
[399675425,1766605840901,-150.0,0.00016617,2]
[399675426,1766605840910,-150.0,0.00016617,2]
[399675427,1766605840919,-150.0,0.00016617,2]
[399675428,1766605840928,-500.0,0.00016617,2]
[399675429,1766605840937,-500.0,0.00016617,2]
[399675430,1766605840946,-150.0,0.00016644,2]
[399675431,1766605840956,-500.0,0.00016644,2]
[399675432,1766605840965,-500.0,0.00016644,2]
[399675433,1766605840974,-518.49334789,0.0001666,2]
[399675434,1766605840982,-150.0,0.00016672,2]
[399675435,1766605840991,-508.93435173,0.00016672,2]
[399675436,1766605841000,-500.0,0.00016672,2]
[399675437,1766605841009,-150.0,0.00016699,2]
[399675438,1766605841018,-276.0,0.00016699,2]
[399675439,1766605841027,-2351.0,0.00016716,2]
[399675440,1766605841036,-150.0,0.00016727,2]
[399675441,1766605841046,-250.0,0.00016754,2]
[399675442,1766605841058,-1600.0,0.00016777,2]
[399675443,1766605841068,-203.59064576,0.00016816,2]
[399675444,1766605841077,-287.0,0.00016821,2]
[399675445,1766605841086,-200.0,0.00016864,2]
[399675446,1766605841100,-13809.52072866,0.000169,2]
[399675447,1766605841109,-304.73796952,0.000169,2]
[399675448,1766605841120,-5002.53691373,0.000169,2]
[399675449,1766605841130,-694.93232339,0.000169,2]
[399675450,1766605841140,-3962.0,0.000169,2]
[399675451,1766605841149,-191.66,0.00016959,2]
[399675452,1766605841158,-500.35332728,0.00016973,2]
[399675453,1766605841167,-500.0,0.00016973,2]
[399675454,1766605841177,-501.65480371,0.00016973,2]
[399675455,1766605841186,-500.0,0.00016973,2]
[399675456,1766605841196,-254.14415415,0.00016973,2]
[399675457,1766605841204,-500.0,0.00016973,2]
[399675458,1766605841214,-500.0,0.00016973,2]
[399675459,1766605841223,-500.0,0.00016973,2]
[399675460,1766605841232,-500.0,0.00016973,2]
[399675461,1766605841241,-500.0,0.00016973,2]
[399675463,1766605841250,-500.0,0.00016973,2]
[399675465,1766605841259,-500.0,0.00016973,2]
[399675466,1766605841269,-500.0,0.00016973,2]
[399675468,1766605841278,-500.0,0.00016973,2]
[399675470,1766605841287,-162.11626746,0.00016973,2]
[399675473,1766605841297,-363.0,0.00016979,2]
[399675475,1766605841306,-300.0,0.00016999,2]
[399675476,1766605841315,-500.0,0.00016999,2]
[399675479,1766605841324,-500.0,0.00016999,2]
[399675480,1766605841333,-500.0,0.00016999,2]
[399675483,1766605841343,-300.0,0.00016999,2]
[399675485,1766605841352,-300.0,0.00016999,2]
[399675487,1766605841362,-671.0702352,0.00016999,2]
[399675489,1766605841372,-300.0,0.00016999,2]
[399675491,1766605841382,-150.0,0.00016999,2]
[399675493,1766605841392,-300.0,0.00016999,2]
[399675495,1766605841401,-666.0,0.00016999,2]
[399675497,1766605841410,-300.0,0.00016999,2]
[399675499,1766605841419,-2698241.16741735,0.00017,2]
[399675504,1766605841464,-1113.48025188,0.00017,2]
[399675505,1766605842104,-371.67173234,0.00016973,2]
[399675506,1766605842115,-128.32826766,0.00016973,2]
[399675507,1766605842126,-350.69879149,0.00017,2]
[399675508,1766605842138,-496.1073209,0.00017,2]
[399675509,1766605842150,-41543.58765704,0.00017,2]
[399675510,1766605842181,-617.33224784,0.00017,2]
[399675511,1766605842196,-2291.63780174,0.00017,2]
[399675512,1766605842636,-1.7e-07,0.00017,2]
[399675516,1766605843334,-2901737.65412492,0.00017,2]
[399675517,1766605843344,-576223.9887529,0.00017,2]
[399675518,1766605843354,-151.0,0.00017,2]
[399675519,1766605843363,-314378.628731,0.00017,2]
[399675520,1766605843372,-6704.676577,0.00017,2]
[399675521,1766605843382,-150.0,0.00017,2]
[399675522,1766605843391,-2903.80863836,0.00017,2]
[399675523,1766605843400,-150.0,0.00017,2]
[399675524,1766605843409,-671.20407632,0.00017,2]
[399675525,1766605843419,-150.0,0.00017,2]
[399675526,1766605843428,-18870.63954084,0.00017,2]
[399675528,1766605843438,-2000.0,0.00017,2]
[399675530,1766605843447,-11700.6318881,0.00017,2]
[399675532,1766605843457,-213.992262,0.00017,2]
[399675533,1766605843466,-151.0,0.00017,2]
[399675535,1766605843475,-151.0,0.00017,2]
[399675537,1766605843484,-151.0,0.00017,2]
[399675539,1766605843492,-151.0,0.00017,2]
[399675541,1766605843503,-153.2941,0.00017,2]
[399675544,1766605843513,-151.0,0.00017,2]
[399675546,1766605843523,-260.755928,0.00017,2]
[399675547,1766605843531,-286.60369,0.00017,2]
[399675549,1766605843541,-205.434949,0.00017,2]
[399675551,1766605843550,-250.0,0.00017,2]
[399675552,1766605843559,-430.0,0.00017015,2]
[399675553,1766605843568,-241.0,0.00017043,2]
[399675554,1766605843577,-241.0,0.0001709,2]
[399675555,1766605843586,-430.0,0.00017092,2]
[399675556,1766605843595,-466.61650939,0.00017123,2]
[399675557,1766605843604,-430.0,0.00017161,2]
[399675558,1766605843614,-200.0,0.00017174,2]
[399675559,1766605843623,-241.0,0.00017208,2]
[399675560,1766605843633,-166.66,0.00017328,2]
[399675561,1766605843642,-241.0,0.00017385,2]
[399675562,1766605843651,-5232.0,0.00017428,2]
[399675563,1766605843660,-430.0,0.00017433,2]
[399675564,1766605843669,-736.0,0.0001745,2]
[399675565,1766605843678,-346.92554585,0.00017452,2]
[399675566,1766605843688,-543.0,0.00017452,2]
[399675567,1766605843697,-298.26089446,0.00017452,2]
[399675568,1766605843707,-599.60298507,0.00017453,2]
[399675569,1766605843716,-151.42395307,0.00017455,2]
[399675570,1766605843725,-241.0,0.00017465,2]
[399675571,1766605843735,-241.0,0.00017469,2]
[399675572,1766605843744,-241.0,0.00017489,2]
[399675573,1766605843753,-430.0,0.00017491,2]
[399675574,1766605843762,-500.0,0.00017507,2]